[Event "24th Barcelona Open-A 2019"]
[Site "Barcelona"]
[Date "2019.10.02"]
[Round "6.7"]
[White "Aroshidze, Levan"]
[Black "Song, Raymond"]
[Result "1-0"]
[ECO "B12"]
[WhiteElo "2517"]
[BlackElo "2456"]
[Annotator "ChessBase"]
[PlyCount "101"]
[EventDate "2019.09.27"]
[EventType "swiss"]
[EventCountry "ESP"]
[SourceTitle "playchess.com"]
[Source "ChessBase"]
[SourceQuality "1"]
[TimeControl "5400+30"]

1. e4 {[%emt 0:00:00]} c6 {[%emt 0:00:00]} 2. d4 {[%emt 0:00:00]} d5 {[%emt 0:00:00]} 3. e5 {[%emt 0:00:00]} Bf5 {[%emt 0:00:00]} 4. Nf3 {[%emt 0:00:00]} e6 {[%emt 0:00:00]} 5. Be2 {[%emt 0:00:03]} Ne7 {[%emt 0:00:00]} 6. O-O {[%emt 0:00:07]} Ng6 {[%emt 0:00:00]} 7. Be3 {[%emt 0:09:28]} Nd7 {[%emt 0:00:18]} 8. Ne1 {[%emt 0:01:35]} h5 {[%emt 0:00:15]} 9. Bd3 {[%emt 0:03:20]} Nh4 {[%emt 0:00:57]} 10. Nd2 {[%emt 0:01:37]} c5 {[%emt 0:02:42]} 11. c3 {[%emt 0:08:29]} Qb6 {[%emt 0:00:54]} 12. Ndf3 Bxd3 {[%emt 0:03:59]} 13. Nxd3 {[%emt 0:08:34]} Nf5 {[%emt 0:02:57]} 14. Qe2 {[%emt 0:10:04]} Qa6 {[%emt 0:09:11]} 15. Qd2 {[%emt 0:01:33]} Rc8 {[%emt 0:08:08]} 16. Bg5 {[%emt 0:01:51]} Be7 {[%emt 0:04:56]} 17. Bxe7 {[%emt 0:07:33]} Nxe7 {[%emt 0:01:55]} 18. b3 {[%emt 0:11:55]} Nf5 {[%emt 0:02:06]} 19. Nf4 {[%emt 0:00:25]} Qa5 {[%emt 0:03:05]} 20. b4 {[%emt 0:00:57]} cxb4 {[%emt 0:02:56]} 21. cxb4 {[%emt 0:00:02]} Qd8 {[%emt 0:02:31]} 22. Rac1 {[%emt 0:01:24]} Rxc1 {[%emt 0:01:02]} 23. Rxc1 {[%emt 0:00:07]} Nb6 {[%emt 0:00:20]} 24. Qd3 {[%emt 0:00:38]} g5 {[%emt 0:07:25]} 25. Qb5+ {[%emt 0:11:34]} Kf8 {[%emt 0:01:08]} 26. Ne2 {[%emt 0:01:02]} g4 {[%emt 0:00:39]} 27. Nd2 {[%emt 0:00:04]} Kg7 {[%emt 0:01:34]} 28. Qd3 {[%emt 0:01:43]} h4 {[%emt 0:01:46]} 29. h3 Qg5 {[%emt 0:01:12]} 30. hxg4 {[%emt 0:03:50]} Qxg4 {[%emt 0:00:10]} 31. Kh2 {[%emt 0:00:35]} Rh6 {[%emt 0:08:57]} 32. Rc7 {[%emt 0:04:05]} Rg6 {[%emt 0:01:58]} 33. Qf3 {[%emt 0:00:19]} Qg5 {[%emt 0:00:16]} 34. Nf4 {[%emt 0:00:34]} Rh6 {[%emt 0:04:12]} 35. Rxb7 {[%emt 0:01:11]} Nc8 {[%emt 0:00:01]} 36. Nb3 {[%emt 0:01:35]} Nce7 {[%emt 0:02:07]} 37. b5 {[%emt 0:00:37]} h3 {[%emt 0:03:14]} 38. Nxh3 {[%emt 0:05:38]} Ng6 {[%emt 0:01:01]} 39. Nc5 {[%emt 0:01:49]} Kg8 {[%emt 0:02:07]} 40. Nd7 {[%emt 0:03:09]} Qd2 {[%emt 0:12:46]} 41. Nf6+ {[%emt 0:00:16]} Kg7 {[%emt 0:00:01]} 42. Rb8 {[%emt 0:01:02]} Rh4 {[%emt 0:00:45]} 43. Rg8+ {[%emt 0:00:29]} Kh6 {[%emt 0:00:00]} 44. Ng4+ {[%emt 0:00:55]} Kh7 {[%emt 0:00:04]} 45. Nf6+ {[%emt 0:00:07]} Kh6 {[%emt 0:00:01]} 46. g4 {[%emt 0:00:29]} Nfe7 {[%emt 0:01:45]} 47. Re8 {[%emt 0:01:10]} Kg7 {[%emt 0:04:37]} 48. Nh5+ {[%emt 0:00:23]} Kh6 {[%emt 0:00:18]} 49. Rh8+ Nxh8 {[%emt 0:00:05]} 50. Qf6+ {[%emt 0:00:15]} Neg6 {[%emt 0:00:04]} 51. Qg7# {[%emt 0:00:04]} 1-0

[Event "24th Barcelona Open-A 2019"]
[Site "Barcelona"]
[Date "2019.10.02"]
[Round "6.9"]
[White "Perez Mitjans, Orelvis"]
[Black "Krishna Teja, N."]
[Result "0-1"]
[ECO "C26"]
[WhiteElo "2409"]
[BlackElo "2364"]
[Annotator "NA"]
[PlyCount "90"]
[EventDate "2019.09.27"]
[EventType "swiss"]
[EventCountry "ESP"]
[SourceTitle "playchess.com"]
[Source "ChessBase"]
[SourceQuality "1"]
[TimeControl "5400+30"]

1. e4 {[%emt 0:11:08]} e5 {[%emt 0:00:00]} 2. Nc3 {[%emt 0:00:36]} Nf6 {[%emt 0:00:00]} 3. g3 {[%emt 0:00:05]} Bc5 {[%emt 0:00:15]} 4. Bg2 {[%emt 0:00:06]} Nc6 {[%emt 0:00:06]} 5. Nge2 {[%emt 0:00:32]} Nd4 {[%emt 0:00:26]} 6. O-O {[%emt 0:00:27]} d6 {[%emt 0:00:04]} 7. h3 {[%emt 0:00:53]} Bd7 {[%emt 0:00:24]} 8. d3 {[%emt 0:00:33]} h5 {[%emt 0:04:17]} 9. Nxd4 {[%emt 0:08:35]} Bxd4 {[%emt 0:00:07]} 10. Bg5 {[%emt 0:08:30]} c6 {[%emt 0:03:32]} 11. Ne2 {[%emt 0:07:46]} Bb6 {[%emt 0:05:03]} 12. a4 {[%emt 0:01:56]} a5 {[%emt 0:01:07]} 13. d4 {[%emt 0:03:45]} Qc8 {[%emt 0:00:08]} 14. h4 {[%emt 0:04:02]} Ng4 {[%emt 0:07:00]} 15. c3 {[%emt 0:01:38]} f6 {[%emt 0:02:46]} 16. Bc1 {[%emt 0:02:29]} Qc7 {[%emt 0:07:04]} 17. f3 {[%emt 0:05:11]} Nh6 {[%emt 0:00:56]} 18. Qd3 {[%emt 0:05:47]} Nf7 {[%emt 0:00:51]} 19. f4 {[%emt 0:00:31]} Bg4 {[%emt 0:01:53]} 20. Be3 {[%emt 0:00:22]} O-O-O {[%emt 0:00:59]} 21. f5 {[%emt 0:01:54]} d5 {[%emt 0:02:00]} 22. exd5 {[%emt 0:01:50]} cxd5 {[%emt 0:00:24]} 23. b4 {[%emt 0:04:09]} Qc4 {[%emt 0:02:04]} 24. Qxc4+ {[%emt 0:00:13]} dxc4 {[%emt 0:00:03]} 25. Bf3 {[%emt 0:00:08]} Bxf3 {[%emt 0:04:02]} 26. Rxf3 {[%emt 0:00:02]} axb4 {[%emt 0:00:12]} 27. a5 {[%emt 0:00:31]} Ba7 {[%emt 0:01:41]} 28. Ra4 {[%emt 0:02:03]} bxc3 {[%emt 0:07:45]} 29. Rxc4+ {[%emt 0:01:10]} Kb8 {[%emt 0:00:12]} 30. d5 {[%emt 0:07:22]} Bxe3+ {[%emt 0:01:24]} 31. Rxe3 {[%emt 0:00:02]} Rxd5 {[%emt 0:00:10]} 32. a6 {[%emt 0:00:31]} Nd6 {[%emt 0:07:10]} 33. Rcxc3 {[%emt 0:00:05]} bxa6 {[%emt 0:00:47]} 34. Ra3 {[%emt 0:01:47]} Ka7 {[%emt 0:01:57]} 35. Nc3 {[%emt 0:02:16]} Rd4 {[%emt 0:00:17]} 36. Re2 {[%emt 0:00:39]} Rc8 {[%emt 0:00:24]} 37. Kh2 {[%emt 0:01:03]} Rc6 {[%emt 0:01:42]} 38. Kh3 {[%emt 0:00:13]} Kb7 {[%emt 0:01:26]} 39. Rb2+ {[%emt 0:01:16]} Rb6 {[%emt 0:00:56]} 40. Rc2 {[%emt 0:00:01]} Rd3 {[%emt 0:00:23]} 41. Raa2 {[%emt 0:00:14]} Rb3 {[%emt 0:01:39]} 42. Na4 {[%emt 0:01:43]} Rxg3+ {[%emt 0:00:10]} 43. Kh2 {[%emt 0:00:01]} Rh3+ {[%emt 0:00:11]} 44. Kg1 {[%emt 0:00:01]} Rbg3+ {[%emt 0:00:21]} 45. Rg2 {[%emt 0:00:05]} Nxf5 {[%emt 0:00:57]} 0-1

[Event "24th Barcelona Open-A 2019"]
[Site "Barcelona"]
[Date "2019.10.02"]
[Round "6.10"]
[White "Purnama, Tirta Chandra"]
[Black "Barseghyan, Harutyun"]
[Result "1/2-1/2"]
[ECO "A43"]
[WhiteElo "2300"]
[BlackElo "2500"]
[Annotator "ChessBase"]
[PlyCount "149"]
[EventDate "2019.09.27"]
[EventType "swiss"]
[EventCountry "ESP"]
[SourceTitle "playchess.com"]
[Source "ChessBase"]
[SourceQuality "1"]
[TimeControl "5400+30"]

1. d4 {[%emt 0:00:07]} Nf6 {[%emt 0:00:00]} 2. Nf3 {[%emt 0:00:45]} c5 {[%emt 0:01:51]} 3. d5 {[%emt 0:04:22]} e6 {[%emt 0:00:29]} 4. Nc3 {[%emt 0:03:56]} exd5 {[%emt 0:02:04]} 5. Nxd5 {[%emt 0:00:27]} Nxd5 {[%emt 0:00:28]} 6. Qxd5 {[%emt 0:00:07]} Nc6 {[%emt 0:03:23]} 7. c3 {[%emt 0:04:04]} d6 {[%emt 0:03:44]} 8. Bg5 {[%emt 0:12:11]} Be7 {[%emt 0:09:24]} 9. Bxe7 {[%emt 0:03:53]} Qxe7 {[%emt 0:04:51]} 10. e3 {[%emt 0:04:19]} Be6 {[%emt 0:01:22]} 11. Qh5 {[%emt 0:03:02]} h6 {[%emt 0:02:22]} 12. Bb5 {[%emt 0:06:21]} O-O {[%emt 0:03:44]} 13. O-O {[%emt 0:03:12]} a6 {[%emt 0:02:31]} 14. Bxc6 {[%emt 0:06:36]} bxc6 {[%emt 0:00:11]} 15. b4 {[%emt 0:00:33]} cxb4 {[%emt 0:02:06]} 16. cxb4 {[%emt 0:00:23]} a5 {[%emt 0:01:57]} 17. b5 {[%emt 0:17:27]} Bc4 {[%emt 0:08:31]} 18. Rfc1 {[%emt 0:08:58]} cxb5 {[%emt 0:02:22]} 19. a4 {[%emt 0:00:05]} Rfc8 {[%emt 0:19:42]} 20. axb5 {[%emt 0:05:11]} Rc5 {[%emt 0:00:08]} 21. Qxc5 {[%emt 0:07:01]} dxc5 {[%emt 0:01:13]} 22. Rxc4 {[%emt 0:00:01]} Rb8 {[%emt 0:15:46]} 23. Rxa5 {[%emt 0:04:36]} Qd8 {[%emt 0:00:01]} 24. Ra1 {[%emt 0:01:19]} Rxb5 {[%emt 0:00:08]} 25. h3 {[%emt 0:00:29]} Qd5 {[%emt 0:00:33]} 26. Rac1 {[%emt 0:00:20]} g5 {[%emt 0:01:33]} 27. e4 {[%emt 0:01:49]} Qd3 {[%emt 0:04:57]} 28. e5 {[%emt 0:00:59]} Qd5 {[%emt 0:00:11]} 29. h4 {[%emt 0:00:26]} gxh4 {[%emt 0:00:04]} 30. Rxh4 {[%emt 0:00:12]} Rb4 {[%emt 0:01:22]} 31. Rxh6 {[%emt 0:00:55]} Rg4 {[%emt 0:00:01]} 32. Rf6 {[%emt 0:00:56]} c4 {[%emt 0:00:27]} 33. Kh2 {[%emt 0:00:52]} Kg7 {[%emt 0:01:56]} 34. Rc3 {[%emt 0:00:27]} Qa5 {[%emt 0:00:56]} 35. Re3 {[%emt 0:00:20]} Qc5 {[%emt 0:00:24]} 36. Kh3 {[%emt 0:00:44]} Qc8 {[%emt 0:00:47]} 37. Rxf7+ {[%emt 0:00:26]} Kg8 {[%emt 0:05:08]} 38. e6 {[%emt 0:00:31]} Rg6 {[%emt 0:00:01]} 39. Kh2 {[%emt 0:00:36]} Rxe6 {[%emt 0:00:08]} 40. Rxe6 {[%emt 0:00:29]} Qxe6 {[%emt 0:00:05]} 41. Rf4 {[%emt 0:00:25]} Qh6+ {[%emt 0:01:01]} 42. Kg3 {[%emt 0:00:19]} Qd6 {[%emt 0:00:06]} 43. Nd4 {[%emt 0:00:33]} c3 {[%emt 0:00:04]} 44. Kf3 {[%emt 0:00:24]} Qd5+ {[%emt 0:00:40]} 45. Kg3 {[%emt 0:00:26]} Qc4 {[%emt 0:01:17]} 46. Kh3 {[%emt 0:00:50]} Qf1 {[%emt 0:01:58]} 47. Kh2 {[%emt 0:00:08]} Kg7 {[%emt 0:00:30]} 48. g3 {[%emt 0:00:28]} Kg6 {[%emt 0:00:02]} 49. Rf8 {[%emt 0:00:28]} Kg5 {[%emt 0:00:50]} 50. Rf4 {[%emt 0:00:11]} Kg6 {[%emt 0:00:39]} 51. Rf8 {[%emt 0:00:06]} Qd3 {[%emt 0:00:30]} 52. Rf4 {[%emt 0:00:09]} Qd2 {[%emt 0:00:18]} 53. Kg2 {[%emt 0:00:17]} Qa2 {[%emt 0:00:44]} 54. Kh2 {[%emt 0:00:26]} Qb2 {[%emt 0:00:13]} 55. Kg2 {[%emt 0:00:16]} Kh5 {[%emt 0:00:46]} 56. Kh2 {[%emt 0:00:13]} c2 {[%emt 0:00:33]} 57. Nxc2 {[%emt 0:00:19]} Qxc2 {[%emt 0:00:01]} 58. Kg2 {[%emt 0:00:25]} Kg5 {[%emt 0:00:05]} 59. Kh2 {[%emt 0:00:11]} Qc6 {[%emt 0:00:07]} 60. Kg1 {[%emt 0:00:19]} Qc1+ {[%emt 0:00:09]} 61. Kg2 {[%emt 0:00:12]} Qb1 {[%emt 0:00:05]} 62. Kh2 {[%emt 0:01:56]} Qf1 {[%emt 0:00:18]} 63. Rf8 {[%emt 0:00:20]} Kg6 {[%emt 0:00:37]} 64. Rf4 {[%emt 0:00:15]} Kg7 {[%emt 0:00:17]} 65. Rf5 {[%emt 0:00:25]} Kh6 {[%emt 0:00:39]} 66. Rf4 {[%emt 0:00:16]} Kg5 {[%emt 0:00:04]} 67. Rf8 {[%emt 0:00:14]} Kg4 {[%emt 0:00:27]} 68. Rf4+ {[%emt 0:00:03]} Kh5 69. Rf8 {[%emt 0:00:22]} Kh6 {[%emt 0:00:24]} 70. Rf4 {[%emt 0:00:10]} Kg7 {[%emt 0:00:07]} 71. Rf5 {[%emt 0:00:18]} Qe2 {[%emt 0:00:09]} 72. Rf4 {[%emt 0:00:12]} Qe1 {[%emt 0:00:11]} 73. Kg2 {[%emt 0:00:14]} Kg6 {[%emt 0:00:06]} 74. Kh2 {[%emt 0:00:16]} Qf1 {[%emt 0:00:15]} 75. Rf8 {[%emt 0:00:20]} 1/2-1/2

[Event "24th Barcelona Open-A 2019"]
[Site "Barcelona"]
[Date "2019.10.02"]
[Round "6.11"]
[White "Priasmoro, Novendra"]
[Black "Valenzuela Gomez, Fernando"]
[Result "1-0"]
[ECO "B94"]
[WhiteElo "2484"]
[BlackElo "2366"]
[Annotator "ChessBase"]
[PlyCount "61"]
[EventDate "2019.09.27"]
[EventType "swiss"]
[EventCountry "ESP"]
[SourceTitle "playchess.com"]
[Source "ChessBase"]
[SourceQuality "1"]
[TimeControl "5400+30"]

1. e4 {[%emt 0:00:00]} c5 {[%emt 0:02:09]} 2. Nf3 {[%emt 0:00:00]} d6 {[%emt 0:00:08]} 3. d4 {[%emt 0:00:30]} cxd4 {[%emt 0:00:12]} 4. Nxd4 {[%emt 0:00:17]} Nf6 {[%emt 0:00:04]} 5. Nc3 {[%emt 0:00:14]} a6 {[%emt 0:00:12]} 6. Bg5 {[%emt 0:00:32]} Nbd7 {[%emt 0:00:05]} 7. f4 {[%emt 0:00:41]} Qa5 {[%emt 0:05:13]} 8. Qf3 {[%emt 0:04:17]} h6 {[%emt 0:01:14]} 9. Bxf6 {[%emt 0:00:13]} Nxf6 {[%emt 0:00:22]} 10. f5 {[%emt 0:00:08]} e5 {[%emt 0:01:34]} 11. fxe6 {[%emt 0:00:21]} fxe6 {[%emt 0:00:14]} 12. O-O-O {[%emt 0:00:31]} Be7 {[%emt 0:02:23]} 13. Bc4 {[%emt 0:02:02]} Qe5 {[%emt 0:01:30]} 14. Rhe1 {[%emt 0:00:37]} g5 {[%emt 0:25:44]} 15. Kb1 {[%emt 0:03:30]} Bd7 {[%emt 0:02:43]} 16. Bb3 {[%emt 0:06:55]} Rc8 {[%emt 0:04:26]} 17. g3 {[%emt 0:04:01]} Rf8 {[%emt 0:08:50]} 18. Qe2 {[%emt 0:17:35]} g4 {[%emt 0:00:38]} 19. Qe3 {[%emt 0:00:25]} h5 {[%emt 0:01:37]} 20. Qh6 {[%emt 0:01:27]} Rf7 {[%emt 0:04:38]} 21. Qg6 {[%emt 0:02:16]} Kf8 {[%emt 0:03:44]} 22. Rf1 {[%emt 0:01:01]} Rg7 {[%emt 0:04:09]} 23. Qh6 {[%emt 0:00:23]} Re8 {[%emt 0:06:18]} 24. Nd5 {[%emt 0:10:31]} exd5 {[%emt 0:05:23]} 25. Bxd5 {[%emt 0:00:13]} Qg5 {[%emt 0:01:53]} 26. Qh8+ {[%emt 0:00:23]} Rg8 {[%emt 0:00:34]} 27. Bxg8 {[%emt 0:00:18]} Qxg8 {[%emt 0:02:52]} 28. Rxf6+ {[%emt 0:00:11]} Bxf6 {[%emt 0:00:06]} 29. Qxf6+ {[%emt 0:00:07]} Qf7 {[%emt 0:00:12]} 30. Qxd6+ {[%emt 0:00:03]} Kg8 {[%emt 0:00:15]} 31. e5 {[%emt 0:00:25]} 1-0

[Event "24th Barcelona Open-A 2019"]
[Site "Barcelona"]
[Date "2019.10.02"]
[Round "6.12"]
[White "Ladron De Guevara Pinto, Paolo"]
[Black "Storey, Charles H"]
[Result "1-0"]
[ECO "D45"]
[WhiteElo "2447"]
[BlackElo "2282"]
[Annotator "NA"]
[PlyCount "77"]
[EventDate "2019.09.27"]
[EventType "swiss"]
[EventCountry "ESP"]
[SourceTitle "playchess.com"]
[Source "ChessBase"]
[SourceQuality "1"]
[TimeControl "5400+30"]

1. d4 {[%emt 0:00:36]} d5 {[%emt 0:00:15]} 2. c4 {[%emt 0:00:38]} e6 {[%emt 0:00:44]} 3. Nc3 {[%emt 0:00:24]} Nf6 {[%emt 0:00:11]} 4. Nf3 {[%emt 0:00:44]} c6 {[%emt 0:00:55]} 5. e3 {[%emt 0:00:45]} Nbd7 {[%emt 0:01:05]} 6. Qc2 {[%emt 0:02:54]} Bd6 {[%emt 0:01:54]} 7. b3 {[%emt 0:00:07]} O-O {[%emt 0:03:10]} 8. Be2 {[%emt 0:00:30]} b6 {[%emt 0:05:30]} 9. O-O {[%emt 0:00:07]} Bb7 {[%emt 0:00:09]} 10. Bb2 dxc4 {[%emt 0:10:37]} 11. bxc4 {[%emt 0:02:09]} Rc8 {[%emt 0:07:42]} 12. Rad1 {[%emt 0:09:31]} Qe7 13. e4 e5 {[%emt 0:04:32]} 14. dxe5 {[%emt 0:10:51]} Nxe5 {[%emt 0:01:06]} 15. Nd4 {[%emt 0:06:31]} Bb8 {[%emt 0:12:54]} 16. f4 {[%emt 0:04:37]} Neg4 {[%emt 0:10:17]} 17. e5 {[%emt 0:09:12]} Bxe5 {[%emt 0:00:37]} 18. fxe5 {[%emt 0:00:11]} Qxe5 {[%emt 0:00:04]} 19. Bxg4 {[%emt 0:09:06]} Nxg4 {[%emt 0:00:14]} 20. Nf3 {[%emt 0:00:29]} Qc5+ {[%emt 0:01:49]} 21. Kh1 {[%emt 0:00:17]} Ne3 {[%emt 0:04:50]} 22. Qc1 {[%emt 0:11:26]} Rfe8 23. Rd4 {[%emt 0:03:47]} Nxf1 {[%emt 0:00:56]} 24. Qxf1 {[%emt 0:00:05]} Qf5 {[%emt 0:05:44]} 25. g4 {[%emt 0:11:41]} Qf6 {[%emt 0:06:59]} 26. c5 {[%emt 0:00:13]} Re3 {[%emt 0:08:35]} 27. Rd3 {[%emt 0:09:19]} Ba6 {[%emt 0:07:15]} 28. Nd5 {[%emt 0:02:10]} Qxb2 {[%emt 0:03:44]} 29. Nxe3 {[%emt 0:00:05]} Re8 {[%emt 0:01:30]} 30. cxb6 {[%emt 0:04:59]} axb6 {[%emt 0:00:36]} 31. Qd1 {[%emt 0:01:18]} Bxd3 {[%emt 0:00:09]} 32. Qxd3 {[%emt 0:00:04]} Qa1+ {[%emt 0:00:43]} 33. Kg2 {[%emt 0:00:24]} Qxa2+ {[%emt 0:00:04]} 34. Kg3 {[%emt 0:00:03]} g6 {[%emt 0:00:48]} 35. g5 {[%emt 0:00:10]} Qa8 {[%emt 0:01:09]} 36. Ng4 {[%emt 0:00:04]} Qb8+ {[%emt 0:00:26]} 37. Kg2 {[%emt 0:00:07]} Rd8 {[%emt 0:00:44]} 38. Qc3 {[%emt 0:00:06]} Rd1 {[%emt 0:00:31]} 39. Nh6+ 1-0

[Event "24th Barcelona Open-A 2019"]
[Site "Barcelona"]
[Date "2019.10.02"]
[Round "6.13"]
[White "Piedra Salabarria, Ernesto"]
[Black "Bharath Subramaniyam H"]
[Result "0-1"]
[ECO "A46"]
[WhiteElo "2287"]
[BlackElo "2417"]
[Annotator "NA"]
[PlyCount "128"]
[EventDate "2019.09.27"]
[EventType "swiss"]
[EventCountry "ESP"]
[SourceTitle "playchess.com"]
[Source "ChessBase"]
[SourceQuality "1"]
[TimeControl "5400+30"]

1. d4 {[%emt 0:06:34]} Nf6 {[%emt 0:00:08]} 2. Nf3 {[%emt 0:00:34]} e6 {[%emt 0:00:35]} 3. Bf4 {[%emt 0:00:10]} b6 {[%emt 0:01:55]} 4. e3 {[%emt 0:00:35]} Bb7 {[%emt 0:00:16]} 5. Bd3 {[%emt 0:00:28]} c5 {[%emt 0:00:28]} 6. Nbd2 {[%emt 0:01:28]} Nc6 {[%emt 0:01:15]} 7. c3 {[%emt 0:00:25]} d5 {[%emt 0:02:13]} 8. O-O {[%emt 0:03:23]} Bd6 {[%emt 0:00:57]} 9. Ne5 {[%emt 0:02:24]} Qc7 {[%emt 0:09:41]} 10. Ndf3 {[%emt 0:03:39]} O-O {[%emt 0:02:01]} 11. Nxc6 {[%emt 0:19:31]} Bxf4 {[%emt 0:10:32]} 12. Nce5 {[%emt 0:02:06]} Bxe5 {[%emt 0:10:23]} 13. Nxe5 {[%emt 0:00:44]} Ne4 {[%emt 0:00:43]} 14. Qg4 {[%emt 0:06:13]} Qe7 {[%emt 0:18:01]} 15. f3 {[%emt 0:08:37]} Nd6 {[%emt 0:01:51]} 16. Qh3 {[%emt 0:02:45]} g6 {[%emt 0:02:03]} 17. f4 {[%emt 0:02:37]} Ne4 {[%emt 0:03:14]} 18. g4 {[%emt 0:02:44]} f6 {[%emt 0:01:57]} 19. Nf3 {[%emt 0:04:03]} cxd4 {[%emt 0:05:26]} 20. cxd4 {[%emt 0:03:06]} Rac8 {[%emt 0:00:51]} 21. g5 {[%emt 0:03:18]} f5 {[%emt 0:01:42]} 22. Qg2 {[%emt 0:01:54]} Rc7 {[%emt 0:04:33]} 23. Rfc1 {[%emt 0:02:52]} Rfc8 {[%emt 0:01:03]} 24. Qf1 {[%emt 0:00:24]} Kf8 {[%emt 0:05:13]} 25. Qe1 {[%emt 0:00:50]} Kg8 {[%emt 0:02:46]} 26. h4 {[%emt 0:00:57]} Qg7 {[%emt 0:01:26]} 27. Ne5 {[%emt 0:02:37]} Nd6 {[%emt 0:03:36]} 28. b3 {[%emt 0:01:45]} Ne4 {[%emt 0:00:12]} 29. Bb5 {[%emt 0:03:25]} Nc3 {[%emt 0:03:28]} 30. Bf1 {[%emt 0:00:26]} Ne4 {[%emt 0:01:18]} 31. Bd3 {[%emt 0:01:49]} Qe7 {[%emt 0:00:15]} 32. a4 {[%emt 0:08:07]} a6 {[%emt 0:00:30]} 33. Bxe4 {[%emt 0:01:38]} dxe4 {[%emt 0:00:44]} 34. Nc4 {[%emt 0:02:34]} Rc6 {[%emt 0:02:45]} 35. a5 {[%emt 0:01:16]} b5 {[%emt 0:00:36]} 36. Nb6 {[%emt 0:00:43]} R8c7 {[%emt 0:00:30]} 37. Qd2 {[%emt 0:00:46]} Qd6 {[%emt 0:00:25]} 38. Kf2 {[%emt 0:00:53]} h6 {[%emt 0:01:19]} 39. gxh6 {[%emt 0:00:34]} Kh7 {[%emt 0:00:14]} 40. Ke2 {[%emt 0:00:32]} Qd8 {[%emt 0:01:33]} 41. Rxc6 {[%emt 0:00:16]} Rxc6 {[%emt 0:00:01]} 42. Rc1 {[%emt 0:00:43]} Qxh4 {[%emt 0:00:21]} 43. Rc5 {[%emt 0:00:26]} Kxh6 {[%emt 0:01:47]} 44. Qc3 {[%emt 0:00:29]} Qh2+ {[%emt 0:00:33]} 45. Kd1 {[%emt 0:00:12]} Qg1+ {[%emt 0:00:07]} 46. Kc2 {[%emt 0:00:27]} Qf2+ {[%emt 0:00:47]} 47. Kb1 {[%emt 0:00:39]} b4 {[%emt 0:00:11]} 48. Qc1 {[%emt 0:00:47]} Rxc5 {[%emt 0:00:29]} 49. dxc5 Bc6 {[%emt 0:00:01]} 50. Nc4 {[%emt 0:00:48]} Bd5 {[%emt 0:00:38]} 51. Qb2 {[%emt 0:00:38]} Qxb2+ {[%emt 0:00:41]} 52. Kxb2 g5 {[%emt 0:00:05]} 53. fxg5+ {[%emt 0:01:00]} Kxg5 {[%emt 0:00:01]} 54. Ne5 {[%emt 0:00:33]} f4 {[%emt 0:01:39]} 55. exf4+ {[%emt 0:00:21]} Kxf4 {[%emt 0:00:02]} 56. Ng6+ {[%emt 0:00:33]} Kg3 {[%emt 0:00:20]} 57. Kc2 {[%emt 0:00:26]} e3 {[%emt 0:00:06]} 58. Kd3 {[%emt 0:00:22]} Be4+ {[%emt 0:00:19]} 59. Kxe3 {[%emt 0:00:52]} Bxg6 {[%emt 0:00:01]} 60. Kd4 {[%emt 0:00:30]} Kf4 {[%emt 0:00:17]} 61. c6 {[%emt 0:00:21]} e5+ {[%emt 0:00:59]} 62. Kc5 {[%emt 0:00:31]} Be4 {[%emt 0:00:13]} 63. c7 {[%emt 0:00:35]} Bb7 {[%emt 0:00:02]} 64. Kb6 {[%emt 0:00:34]} Bc8 {[%emt 0:00:02]} 0-1

[Event "24th Barcelona Open-A 2019"]
[Site "Barcelona"]
[Date "2019.10.02"]
[Round "6.14"]
[White "Veinberg, Nimrod"]
[Black "Jimenez Ruano, Adrian"]
[Result "1/2-1/2"]
[ECO "E35"]
[WhiteElo "2411"]
[BlackElo "2311"]
[Annotator "NA"]
[PlyCount "129"]
[EventDate "2019.09.27"]
[EventType "swiss"]
[EventCountry "ESP"]
[SourceTitle "playchess.com"]
[Source "ChessBase"]
[SourceQuality "1"]
[TimeControl "5400+30"]

1. d4 {[%emt 0:00:00]} Nf6 {[%emt 0:00:00]} 2. c4 {[%emt 0:00:05]} e6 {[%emt 0:00:00]} 3. Nc3 {[%emt 0:00:37]} Bb4 {[%emt 0:00:00]} 4. Qc2 {[%emt 0:00:06]} d5 {[%emt 0:00:00]} 5. cxd5 {[%emt 0:00:38]} exd5 {[%emt 0:00:05]} 6. Bg5 {[%emt 0:00:12]} h6 {[%emt 0:00:07]} 7. Bxf6 {[%emt 0:01:00]} Qxf6 {[%emt 0:00:06]} 8. a3 {[%emt 0:00:14]} Bxc3+ {[%emt 0:00:09]} 9. Qxc3 {[%emt 0:00:07]} O-O {[%emt 0:00:19]} 10. e3 {[%emt 0:00:09]} Bf5 {[%emt 0:00:59]} 11. Nf3 {[%emt 0:00:47]} Nd7 {[%emt 0:00:40]} 12. Be2 {[%emt 0:17:14]} c5 {[%emt 0:02:42]} 13. O-O {[%emt 0:01:18]} c4 {[%emt 0:08:03]} 14. a4 {[%emt 0:00:09]} a6 {[%emt 0:03:49]} 15. Ra2 {[%emt 0:06:53]} Rfb8 {[%emt 0:11:42]} 16. Rfa1 {[%emt 0:02:24]} Qc6 {[%emt 0:25:32]} 17. a5 {[%emt 0:12:28]} b5 {[%emt 0:02:30]} 18. axb6 {[%emt 0:00:10]} Rxb6 {[%emt 0:00:09]} 19. Nd2 {[%emt 0:01:00]} Nf6 {[%emt 0:02:31]} 20. Bd1 {[%emt 0:07:18]} Ne8 {[%emt 0:10:14]} 21. b3 {[%emt 0:04:31]} Nd6 {[%emt 0:00:21]} 22. bxc4 {[%emt 0:00:45]} Nxc4 {[%emt 0:00:25]} 23. h3 {[%emt 0:05:45]} Rc8 {[%emt 0:02:39]} 24. Be2 {[%emt 0:01:04]} Qg6 {[%emt 0:06:28]} 25. Kh2 {[%emt 0:13:17]} Qd6+ {[%emt 0:01:30]} 26. g3 {[%emt 0:00:58]} Qf6 {[%emt 0:03:43]} 27. Nxc4 {[%emt 0:06:33]} Bb1 {[%emt 0:11:41]} 28. Qe1 {[%emt 0:00:15]} dxc4 {[%emt 0:00:02]} 29. Rxb1 {[%emt 0:00:33]} Rxb1 {[%emt 0:00:02]} 30. Qxb1 {[%emt 0:00:02]} Qxf2+ {[%emt 0:00:01]} 31. Kh1 {[%emt 0:00:02]} Qxg3 {[%emt 0:00:02]} 32. Qf5 {[%emt 0:04:11]} Rc6 {[%emt 0:00:31]} 33. Bf3 {[%emt 0:01:41]} Rf6 {[%emt 0:02:28]} 34. Qc8+ {[%emt 0:00:45]} Kh7 {[%emt 0:00:01]} 35. Be4+ {[%emt 0:00:46]} g6 {[%emt 0:00:04]} 36. Bg2 {[%emt 0:00:36]} Rb6 {[%emt 0:01:39]} 37. Ra1 {[%emt 0:00:56]} Rb2 {[%emt 0:00:24]} 38. Qc6 {[%emt 0:00:02]} h5 {[%emt 0:05:44]} 39. Rg1 {[%emt 0:01:26]} Rc2 {[%emt 0:00:52]} 40. Qf3 {[%emt 0:05:39]} Qc7 {[%emt 0:00:09]} 41. Rf1 {[%emt 0:00:15]} Kg8 {[%emt 0:01:32]} 42. Qa8+ {[%emt 0:00:43]} Kg7 {[%emt 0:00:10]} 43. Qxa6 {[%emt 0:00:07]} c3 {[%emt 0:00:11]} 44. Qc6 {[%emt 0:02:20]} Qe7 {[%emt 0:00:33]} 45. d5 {[%emt 0:00:37]} Qxe3 {[%emt 0:00:55]} 46. Qf6+ {[%emt 0:00:08]} Kh6 {[%emt 0:00:06]} 47. Qxf7 {[%emt 0:01:40]} Rc1 {[%emt 0:00:03]} 48. Qf8+ {[%emt 0:03:28]} Kh7 {[%emt 0:00:01]} 49. d6 {[%emt 0:00:44]} Rxf1+ {[%emt 0:01:05]} 50. Qxf1 {[%emt 0:00:23]} c2 {[%emt 0:01:10]} 51. d7 {[%emt 0:00:09]} Qd2 {[%emt 0:00:41]} 52. Qf7+ Kh6 53. Qf8+ {[%emt 0:00:49]} Kh7 {[%emt 0:00:01]} 54. d8=Q {[%emt 0:00:49]} c1=Q+ {[%emt 0:00:11]} 55. Kh2 {[%emt 0:00:04]} Qxd8 56. Qxd8 {[%emt 0:00:02]} Qf4+ {[%emt 0:00:36]} 57. Kg1 {[%emt 0:00:14]} Qe3+ {[%emt 0:00:14]} 58. Kf1 {[%emt 0:00:07]} Qc1+ {[%emt 0:00:43]} 59. Ke2 {[%emt 0:00:07]} Qc2+ {[%emt 0:00:19]} 60. Qd2 {[%emt 0:00:02]} Qxd2+ {[%emt 0:00:48]} 61. Kxd2 {[%emt 0:00:05]} Kh6 {[%emt 0:00:45]} 62. Ke3 {[%emt 0:00:07]} Kg5 {[%emt 0:00:21]} 63. Bc6 {[%emt 0:00:21]} Kh4 {[%emt 0:01:04]} 64. Bd7 {[%emt 0:00:06]} Kg3 {[%emt 0:00:36]} 65. Be6 {[%emt 0:00:07]} 1/2-1/2